[Event "Krakow Championship-B 2022"]
[Site "Krakow"]
[Date "2022.06.25"]
[Round "1.1"]
[White "Szczurek, Krzysztof"]
[Black "Moeller, Hannah"]
[Result "1-0"]
[ECO "B07"]
[WhiteElo "2151"]
[BlackElo "1833"]
[Annotator "RC"]
[PlyCount "57"]
[EventDate "2022.06.25"]
[EventType "swiss"]
[EventCountry "POL"]
[SourceTitle "playchess.com"]
[Source "ChessBase"]
[SourceQuality "1"]
[TimeControl "40/5400+30:1800+30"]

1. d4 {[%emt 0:00:03]} Nf6 {[%emt 0:00:05]} 2. Nc3 {[%emt 0:00:05]} g6 {[%emt 0:00:07]} 3. e4 {[%emt 0:00:06]} d6 {[%emt 0:00:05]} 4. Be3 {[%emt 0:00:34]} Bg7 {[%emt 0:00:14]} 5. f3 {[%emt 0:00:32]} Nbd7 {[%emt 0:00:46]} 6. Qd2 {[%emt 0:00:32]} h5 {[%emt 0:00:20]} 7. O-O-O {[%emt 0:00:18]} c6 {[%emt 0:00:14]} 8. e5 {[%emt 0:02:39]} Nh7 {[%emt 0:00:48]} 9. exd6 {[%emt 0:00:34]} exd6 {[%emt 0:00:26]} 10. Bf4 {[%emt 0:00:25]} Nb6 {[%emt 0:01:16]} 11. Ne4 {[%emt 0:01:07]} O-O {[%emt 0:03:15]} 12. Bxd6 {[%emt 0:02:38]} Re8 {[%emt 0:00:40]} 13. Ba3 {[%emt 0:01:17]} Bf8 {[%emt 0:03:05]} 14. Bxf8 {[%emt 0:01:02]} Rxf8 {[%emt 0:01:59]} 15. h3 {[%emt 0:01:56]} Be6 {[%emt 0:02:57]} 16. g4 {[%emt 0:01:53]} h4 {[%emt 0:00:55]} 17. Ne2 {[%emt 0:04:34]} Nc4 {[%emt 0:02:29]} 18. Qc3 {[%emt 0:01:50]} b5 {[%emt 0:02:15]} 19. Nf4 {[%emt 0:25:16]} Bd5 {[%emt 0:00:33]} 20. b3 {[%emt 0:00:12]} Na3 {[%emt 0:00:54]} 21. Kb2 {[%emt 0:04:26]} Bxe4 {[%emt 0:03:15]} 22. fxe4 {[%emt 0:03:40]} Qe7 {[%emt 0:00:07]} 23. Bg2 {[%emt 0:01:53]} b4 {[%emt 0:02:24]} 24. Qc5 {[%emt 0:00:08]} Qxc5 {[%emt 0:01:46]} 25. dxc5 {[%emt 0:00:09]} Rfe8 {[%emt 0:00:19]} 26. c4 {[%emt 0:04:05]} Ng5 {[%emt 0:05:31]} 27. Rhe1 {[%emt 0:00:32]} Rad8 {[%emt 0:00:54]} 28. Rd6 {[%emt 0:01:12]} Kf8 {[%emt 0:02:10]} 29. e5 1-0

[Event "Krakow Championship-B 2022"]
[Site "Krakow"]
[Date "2022.06.25"]
[Round "1.2"]
[White "Zarebska, Lena"]
[Black "Lilja, Richard"]
[Result "1-0"]
[ECO "B06"]
[WhiteElo "1829"]
[BlackElo "2144"]
[Annotator "NA RC"]
[PlyCount "75"]
[EventDate "2022.06.25"]
[EventType "swiss"]
[EventCountry "POL"]
[SourceTitle "playchess.com"]
[Source "ChessBase"]
[SourceQuality "1"]
[TimeControl "40/5400+30:1800+30"]

1. e4 {[%emt 0:00:04]} g6 {[%emt 0:00:53]} 2. d4 {[%emt 0:00:14]} Bg7 {[%emt 0:00:06]} 3. f4 {[%emt 0:00:50]} d6 {[%emt 0:00:38]} 4. Nf3 {[%emt 0:00:23]} Nf6 {[%emt 0:04:48]} 5. e5 {[%emt 0:00:54]} dxe5 {[%emt 0:00:08]} 6. dxe5 {[%emt 0:00:04]} Qxd1+ {[%emt 0:00:51]} 7. Kxd1 {[%emt 0:00:02]} Nd5 {[%emt 0:06:13]} 8. c4 {[%emt 0:03:37]} Nb6 {[%emt 0:00:38]} 9. Nc3 {[%emt 0:01:00]} c6 {[%emt 0:06:16]} 10. Bd3 {[%emt 0:03:05]} O-O {[%emt 0:03:33]} 11. Be3 {[%emt 0:02:38]} Bg4 {[%emt 0:05:46]} 12. Kc2 {[%emt 0:02:45]} Na6 {[%emt 0:03:33]} 13. a3 {[%emt 0:00:58]} Nd7 {[%emt 0:03:44]} 14. b4 {[%emt 0:01:33]} f6 {[%emt 0:03:52]} 15. exf6 {[%emt 0:01:03]} Nxf6 {[%emt 0:01:35]} 16. Ne5 {[%emt 0:01:06]} Nc7 {[%emt 0:03:01]} 17. h3 {[%emt 0:01:50]} Be6 {[%emt 0:03:06]} 18. g4 {[%emt 0:06:09]} Nd7 {[%emt 0:00:24]} 19. Nxd7 {[%emt 0:11:15]} Bxd7 {[%emt 0:00:02]} 20. Rhf1 {[%emt 0:01:34]} Bh6 {[%emt 0:09:40]} 21. Rae1 {[%emt 0:01:13]} e6 {[%emt 0:05:20]} 22. Ne4 {[%emt 0:06:06]} a5 {[%emt 0:01:58]} 23. Bd4 {[%emt 0:04:42]} Ne8 {[%emt 0:02:33]} 24. Nc5 {[%emt 0:03:23]} Bc8 {[%emt 0:00:06]} 25. Nxe6 {[%emt 0:02:11]} Bxe6 {[%emt 0:00:11]} 26. Rxe6 {[%emt 0:00:03]} axb4 {[%emt 0:01:24]} 27. f5 {[%emt 0:08:23]} bxa3 {[%emt 0:00:49]} 28. fxg6 {[%emt 0:00:39]} hxg6 {[%emt 0:00:15]} 29. Rxg6+ {[%emt 0:00:43]} Bg7 {[%emt 0:00:05]} 30. Bf5 {[%emt 0:04:10]} a2 {[%emt 0:02:35]} 31. Ba1 {[%emt 0:02:56]} c5 {[%emt 0:08:12]} 32. Re1 {[%emt 0:05:25]} Nf6 {[%emt 0:04:14]} 33. Re7 {[%emt 0:02:18]} Rf7 {[%emt 0:00:07]} 34. Be6 {[%emt 0:01:05]} Raf8 {[%emt 0:00:27]} 35. Rxf7 {[%emt 0:00:45]} Rxf7 {[%emt 0:00:20]} 36. Bxf7+ {[%emt 0:00:05]} Kxf7 {[%emt 0:00:09]} 37. Rxg7+ {[%emt 0:00:08]} Kxg7 {[%emt 0:00:10]} 38. g5 {[%emt 0:00:03]} 1-0

[Event "Krakow Championship-B 2022"]
[Site "Krakow"]
[Date "2022.06.25"]
[Round "1.3"]
[White "Skomial, Mateusz"]
[Black "Krupinski, Mikolaj"]
[Result "1-0"]
[ECO "B59"]
[WhiteElo "2063"]
[BlackElo "1826"]
[Annotator "NA RC"]
[PlyCount "77"]
[EventDate "2022.06.25"]
[EventType "swiss"]
[EventCountry "POL"]
[SourceTitle "playchess.com"]
[Source "ChessBase"]
[SourceQuality "1"]
[TimeControl "40/5400+30:1800+30"]

1. e4 {[%emt 0:00:16]} c5 {[%emt 0:00:11]} 2. Nf3 {[%emt 0:00:05]} Nc6 {[%emt 0:00:03]} 3. d4 {[%emt 0:00:14]} cxd4 {[%emt 0:00:03]} 4. Nxd4 {[%emt 0:00:04]} Nf6 {[%emt 0:00:06]} 5. Nc3 {[%emt 0:00:19]} d6 {[%emt 0:00:04]} 6. Be2 {[%emt 0:00:35]} e5 {[%emt 0:00:42]} 7. Nb3 {[%emt 0:05:40]} Be7 {[%emt 0:01:16]} 8. f3 {[%emt 0:02:01]} O-O {[%emt 0:07:40]} 9. Be3 {[%emt 0:03:33]} Be6 {[%emt 0:01:45]} 10. O-O {[%emt 0:03:12]} d5 {[%emt 0:02:47]} 11. exd5 {[%emt 0:00:10]} Nxd5 {[%emt 0:00:06]} 12. Nxd5 {[%emt 0:00:06]} Qxd5 {[%emt 0:00:29]} 13. Qe1 {[%emt 0:03:09]} Nd4 {[%emt 0:22:18]} 14. Bd3 {[%emt 0:01:24]} Nxb3 {[%emt 0:05:19]} 15. axb3 {[%emt 0:00:10]} Rfd8 {[%emt 0:04:41]} 16. Ra5 {[%emt 0:04:43]} Qd7 {[%emt 0:10:39]} 17. Rxa7 {[%emt 0:05:59]} Rxa7 {[%emt 0:08:21]} 18. Bxa7 {[%emt 0:00:02]} Qc7 {[%emt 0:02:21]} 19. Bf2 {[%emt 0:06:26]} g6 {[%emt 0:02:47]} 20. Qe2 {[%emt 0:02:36]} Bf6 {[%emt 0:03:17]} 21. Rd1 {[%emt 0:03:55]} Bg7 {[%emt 0:05:31]} 22. Be4 {[%emt 0:03:04]} Rxd1+ {[%emt 0:03:01]} 23. Qxd1 {[%emt 0:00:41]} f5 {[%emt 0:01:55]} 24. Bd5 {[%emt 0:00:33]} Kf7 {[%emt 0:00:20]} 25. c4 {[%emt 0:04:53]} Qd6 {[%emt 0:07:00]} 26. Bxe6+ {[%emt 0:00:50]} Kxe6 {[%emt 0:00:08]} 27. Qc2 {[%emt 0:03:43]} Bh6 {[%emt 0:03:30]} 28. Be1 {[%emt 0:00:20]} Qd4+ {[%emt 0:01:54]} 29. Kf1 {[%emt 0:00:13]} Qf4 {[%emt 0:01:46]} 30. Qd3 {[%emt 0:02:14]} Qxh2 {[%emt 0:00:16]} 31. Qd5+ {[%emt 0:00:17]} Kf6 {[%emt 0:00:06]} 32. Bh4+ {[%emt 0:12:05]} Kg7 {[%emt 0:02:10]} 33. Qd7+ {[%emt 0:00:47]} Kg8 {[%emt 0:01:13]} 34. Qe6+ {[%emt 0:00:56]} Kf8 {[%emt 0:00:16]} 35. Be7+ {[%emt 0:00:15]} Kg7 {[%emt 0:00:02]} 36. Bf6+ {[%emt 0:00:13]} Kf8 {[%emt 0:00:03]} 37. Qe7+ {[%emt 0:00:08]} Kg8 {[%emt 0:00:02]} 38. Qe8+ {[%emt 0:00:06]} Bf8 {[%emt 0:00:06]} 39. Qe6# 1-0

[Event "Krakow Championship-B 2022"]
[Site "Krakow"]
[Date "2022.06.25"]
[Round "1.4"]
[White "Rumsey, Victor B"]
[Black "Stemmler, Fabian"]
[Result "0-1"]
[ECO "A96"]
[WhiteElo "1809"]
[BlackElo "2054"]
[Annotator "RC"]
[PlyCount "144"]
[EventDate "2022.06.25"]
[EventType "swiss"]
[EventCountry "POL"]
[SourceTitle "playchess.com"]
[Source "ChessBase"]
[SourceQuality "1"]
[TimeControl "40/5400+30:1800+30"]

1. d4 e6 2. c4 f5 3. g3 Nf6 4. Bg2 Be7 5. Nf3 O-O 6. O-O d6 7. Nc3 Ne4 8. Qc2 Nxc3 9. Qxc3 a5 10. b3 Bf6 11. Bb2 Nc6 12. Rad1 Qe8 13. Qc2 e5 14. dxe5 dxe5 15. e4 f4 16. gxf4 exf4 17. e5 Be7 18. Rfe1 Be6 19. a3 Qh5 20. Qe4 g5 21. h3 Rad8 22. Nd4 Nxd4 23. Rxd4 f3 24. Rxd8 Bxd8 25. Bf1 c6 26. c5 Rf4 27. Qd3 Be7 28. Re4 Qh4 29. Rxf4 Qxf4 30. Qe3 Qxe3 31. fxe3 h5 32. Kf2 g4 33. hxg4 hxg4 34. Kg3 Bxc5 35. Bc3 Bxa3 36. Bxa5 Bb2 37. Kf4 Bxe5+ 38. Kxe5 g3 39. Be1 g2 40. Bxg2 fxg2 41. Bf2 Bxb3 42. e4 Bc2 43. Bb6 Kf7 44. Kf4 Ke6 45. Kf3 Kd6 46. Kxg2 Bxe4+ 47. Kf2 c5 48. Ke3 Bg6 49. Kd2 Kc6 50. Bd8 b5 51. Be7 Kd5 52. Kc3 Bh5 53. Kb3 Bd1+ 54. Kc3 b4+ 55. Kd3 Ba4 56. Kd2 Kc4 57. Kc1 Bd7 58. Kb2 Kb5 59. Bf6 Be6 60. Bg7 Kc6 61. Bf6 c4 62. Bg7 Bg4 63. Bf6 Bd1 64. Be7 Kb5 65. Bf6 Ba4 66. Bd4 Kc6 67. Bf6 Kd5 68. Bg7 Ke4 69. Bf6 Kd3 70. Bg7 c3+ 71. Kc1 b3 72. Kb1 b2 0-1

[Event "Krakow Championship-B 2022"]
[Site "Krakow"]
[Date "2022.06.25"]
[Round "1.5"]
[White "Kulesza, Andrzej"]
[Black "Owoc, Jakub"]
[Result "0-1"]
[ECO "B12"]
[WhiteElo "1998"]
[BlackElo "1741"]
[Annotator "NA RC"]
[PlyCount "140"]
[EventDate "2022.06.25"]
[EventType "swiss"]
[EventCountry "POL"]
[SourceTitle "playchess.com"]
[Source "ChessBase"]
[SourceQuality "1"]
[TimeControl "40/5400+30:1800+30"]

1. e4 {[%emt 0:00:41]} c6 {[%emt 0:00:07]} 2. d4 {[%emt 0:00:49]} d5 {[%emt 0:00:06]} 3. e5 {[%emt 0:02:08]} c5 {[%emt 0:00:16]} 4. dxc5 {[%emt 0:01:57]} Nc6 {[%emt 0:00:12]} 5. Nf3 {[%emt 0:01:49]} Bg4 {[%emt 0:01:21]} 6. c3 {[%emt 0:05:08]} e6 {[%emt 0:00:40]} 7. Bb5 {[%emt 0:09:11]} Bxf3 {[%emt 0:09:17]} 8. Qxf3 {[%emt 0:01:02]} Bxc5 {[%emt 0:00:14]} 9. O-O {[%emt 0:08:19]} Nge7 {[%emt 0:02:19]} 10. Bg5 {[%emt 0:16:44]} Qc7 {[%emt 0:06:12]} 11. b4 {[%emt 0:05:57]} Bb6 {[%emt 0:00:17]} 12. Bxe7 {[%emt 0:03:09]} Qxe7 {[%emt 0:00:25]} 13. Qe2 {[%emt 0:00:33]} O-O {[%emt 0:01:56]} 14. Nd2 {[%emt 0:02:34]} a5 {[%emt 0:09:20]} 15. a3 {[%emt 0:00:47]} Qc7 {[%emt 0:04:12]} 16. Nf3 {[%emt 0:01:37]} Rfd8 {[%emt 0:00:47]} 17. Rac1 {[%emt 0:01:05]} Qe7 {[%emt 0:06:36]} 18. Qb2 {[%emt 0:03:15]} Rac8 {[%emt 0:03:51]} 19. Bd3 {[%emt 0:02:13]} d4 {[%emt 0:04:21]} 20. b5 {[%emt 0:07:35]} dxc3 {[%emt 0:00:47]} 21. Qxc3 {[%emt 0:02:46]} Na7 {[%emt 0:00:07]} 22. Qb3 {[%emt 0:00:26]} a4 {[%emt 0:00:20]} 23. Qb1 {[%emt 0:00:08]} Qxa3 {[%emt 0:01:19]} 24. Rxc8 {[%emt 0:00:37]} Rxc8 {[%emt 0:02:14]} 25. Bxh7+ {[%emt 0:00:06]} Kf8 {[%emt 0:00:04]} 26. Be4 {[%emt 0:00:23]} Qb3 {[%emt 0:01:10]} 27. g3 {[%emt 0:08:46]} Nxb5 {[%emt 0:06:59]} 28. Bxb7 {[%emt 0:04:14]} Rc2 {[%emt 0:00:29]} 29. Qe1 {[%emt 0:04:24]} Nc3 {[%emt 0:10:47]} 30. Ba6 {[%emt 0:01:53]} Qd5 {[%emt 0:02:30]} 31. Kg2 {[%emt 0:01:03]} a3 {[%emt 0:00:55]} 32. h4 {[%emt 0:00:49]} a2 {[%emt 0:00:14]} 33. Qa1 {[%emt 0:01:05]} Bd4 {[%emt 0:03:41]} 34. Bd3 {[%emt 0:00:59]} Rd2 {[%emt 0:00:08]} 35. Bc4 {[%emt 0:00:48]} Qc6 {[%emt 0:00:52]} 36. Qc1 {[%emt 0:00:14]} Nb1 {[%emt 0:00:34]} 37. Bxa2 {[%emt 0:00:40]} Rxf2+ {[%emt 0:03:18]} 38. Rxf2 {[%emt 0:00:16]} Qxc1 {[%emt 0:00:07]} 39. Nxd4 {[%emt 0:00:03]} Ke7 {[%emt 0:02:22]} 40. Bxb1 {[%emt 0:00:51]} Qxb1 {[%emt 0:00:08]} 41. Nf3 {[%emt 0:30:03]} Qe4 {[%emt 0:30:18]} 42. Kh2 {[%emt 0:00:16]} Qe3 {[%emt 0:00:27]} 43. Kg2 {[%emt 0:00:05]} f6 {[%emt 0:01:46]} 44. Rf1 {[%emt 0:00:06]} Qe2+ {[%emt 0:01:13]} 45. Rf2 {[%emt 0:00:06]} Qe4 {[%emt 0:00:05]} 46. Rf1 {[%emt 0:00:05]} fxe5 {[%emt 0:00:09]} 47. Re1 {[%emt 0:00:41]} Qc2+ {[%emt 0:00:12]} 48. Kh3 {[%emt 0:00:38]} Qc3 {[%emt 0:07:09]} 49. Rf1 {[%emt 0:01:42]} e4 {[%emt 0:00:40]} 50. Ng1 {[%emt 0:01:45]} Qd2 {[%emt 0:00:45]} 51. Kg4 {[%emt 0:01:19]} e5 {[%emt 0:00:43]} 52. Ra1 {[%emt 0:01:01]} e3 {[%emt 0:01:42]} 53. Nf3 {[%emt 0:00:30]} Qd7+ {[%emt 0:00:44]} 54. Kg5 {[%emt 0:00:19]} e4 {[%emt 0:00:39]} 55. Ne5 {[%emt 0:00:40]} Qd5 {[%emt 0:01:42]} 56. Kf5 {[%emt 0:00:54]} e2 {[%emt 0:00:30]} 57. Ra7+ {[%emt 0:00:27]} Ke8 {[%emt 0:01:02]} 58. Ra1 {[%emt 0:00:18]} Ke7 {[%emt 0:01:21]} 59. h5 {[%emt 0:00:50]} Qd1 {[%emt 0:01:47]} 60. Ra7+ {[%emt 0:00:26]} Kd6 {[%emt 0:00:15]} 61. Nc4+ {[%emt 0:00:49]} Kc5 {[%emt 0:00:19]} 62. Ne3 {[%emt 0:00:12]} Kb6 {[%emt 0:02:23]} 63. Rxg7 {[%emt 0:01:02]} Qg1 {[%emt 0:00:10]} 64. Nc2 {[%emt 0:00:28]} Qc5+ {[%emt 0:00:04]} 65. Kg6 {[%emt 0:00:33]} Qxc2 {[%emt 0:00:05]} 66. h6 {[%emt 0:00:03]} e3+ {[%emt 0:00:17]} 67. Kf7 {[%emt 0:00:17]} e1=Q {[%emt 0:00:07]} 68. Rg6+ {[%emt 0:00:20]} Qxg6+ {[%emt 0:00:06]} 69. Kxg6 {[%emt 0:00:03]} Qxg3+ {[%emt 0:00:04]} 70. Kh7 {[%emt 0:00:04]} e2 {[%emt 0:00:10]} 0-1

[Event "Krakow Championship-B 2022"]
[Site "Krakow"]
[Date "2022.06.25"]
[Round "1.6"]
[White "Crnkovic, Predrag"]
[Black "Duncan, Patrick C M"]
[Result "0-1"]
[ECO "B10"]
[WhiteElo "1792"]
[BlackElo "2013"]
[Annotator "NA RC"]
[PlyCount "80"]
[EventDate "2022.06.25"]
[EventType "swiss"]
[EventCountry "POL"]
[SourceTitle "playchess.com"]
[Source "ChessBase"]
[SourceQuality "1"]
[TimeControl "40/5400+30:1800+30"]

1. e4 {[%emt 0:01:44]} c6 {[%emt 0:00:12]} 2. d3 {[%emt 0:07:57]} d5 {[%emt 0:00:17]} 3. Nd2 {[%emt 0:00:08]} e5 {[%emt 0:00:32]} 4. Ngf3 {[%emt 0:01:03]} Bd6 {[%emt 0:00:58]} 5. g3 {[%emt 0:01:37]} Nf6 {[%emt 0:01:59]} 6. c3 {[%emt 0:03:07]} O-O {[%emt 0:03:56]} 7. Bg2 {[%emt 0:02:08]} Nbd7 {[%emt 0:02:11]} 8. O-O {[%emt 0:02:52]} b6 {[%emt 0:07:04]} 9. Re1 {[%emt 0:06:15]} Qc7 {[%emt 0:05:55]} 10. d4 {[%emt 0:13:07]} dxe4 {[%emt 0:10:36]} 11. dxe5 {[%emt 0:03:36]} Nxe5 {[%emt 0:01:27]} 12. Nxe5 {[%emt 0:05:44]} Bxe5 {[%emt 0:01:01]} 13. Nxe4 {[%emt 0:00:18]} Bb7 {[%emt 0:07:00]} 14. Nxf6+ {[%emt 0:02:34]} Bxf6 {[%emt 0:01:37]} 15. Bf4 {[%emt 0:00:10]} Qc8 {[%emt 0:04:18]} 16. Qf3 {[%emt 0:01:42]} Re8 {[%emt 0:04:01]} 17. g4 {[%emt 0:03:57]} g6 {[%emt 0:10:40]} 18. g5 {[%emt 0:02:11]} Bg7 {[%emt 0:00:50]} 19. Bh3 {[%emt 0:02:27]} Rxe1+ {[%emt 0:00:42]} 20. Rxe1 {[%emt 0:00:09]} Qf8 {[%emt 0:09:41]} 21. Bd7 {[%emt 0:06:42]} Qc5 {[%emt 0:03:42]} 22. Re8+ {[%emt 0:05:09]} Rxe8 {[%emt 0:02:35]} 23. Bxe8 {[%emt 0:00:07]} Qf5 {[%emt 0:01:39]} 24. Qe3 {[%emt 0:08:44]} Qb1+ {[%emt 0:04:26]} 25. Qc1 {[%emt 0:12:39]} Qxa2 {[%emt 0:00:37]} 26. Bd7 {[%emt 0:01:16]} c5 {[%emt 0:03:31]} 27. Bg4 {[%emt 0:01:12]} Qd5 {[%emt 0:02:23]} 28. f3 {[%emt 0:00:08]} Be5 {[%emt 0:01:07]} 29. Bxe5 {[%emt 0:03:24]} Qxe5 {[%emt 0:00:09]} 30. Qd2 {[%emt 0:01:18]} Bc6 {[%emt 0:03:14]} 31. h4 {[%emt 0:01:51]} Qg3+ {[%emt 0:01:24]} 32. Kh1 {[%emt 0:00:13]} Qxh4+ {[%emt 0:00:36]} 33. Kg1 {[%emt 0:00:05]} Qg3+ {[%emt 0:00:13]} 34. Kh1 {[%emt 0:00:01]} Bxf3+ {[%emt 0:02:11]} 35. Bxf3 {[%emt 0:00:10]} Qxf3+ {[%emt 0:00:06]} 36. Kg1 {[%emt 0:00:40]} Kg7 {[%emt 0:00:39]} 37. Qd8 {[%emt 0:00:41]} Qg4+ {[%emt 0:01:16]} 38. Kh1 {[%emt 0:00:15]} Qe4+ {[%emt 0:00:22]} 39. Kh2 {[%emt 0:00:14]} Qf4+ {[%emt 0:00:44]} 40. Kg2 {[%emt 0:00:11]} h6 {[%emt 0:01:44]} 0-1

[Event "Krakow Championship-B 2022"]
[Site "Krakow"]
[Date "2022.06.25"]
[Round "1.7"]
[White "Al-Hajiri, Bader"]
[Black "Evenshaug, Amadeus Hestvik"]
[Result "0-1"]
[ECO "A58"]
[WhiteElo "2052"]
[BlackElo "1785"]
[Annotator "NA RC"]
[PlyCount "93"]
[EventDate "2022.06.25"]
[EventType "swiss"]
[EventCountry "POL"]
[SourceTitle "playchess.com"]
[Source "ChessBase"]
[SourceQuality "1"]
[TimeControl "40/5400+30:1800+30"]

1. d4 {[%emt 0:00:04]} Nf6 {[%emt 0:00:13]} 2. c4 {[%emt 0:00:29]} c5 {[%emt 0:00:39]} 3. d5 {[%emt 0:00:44]} b5 {[%emt 0:00:38]} 4. cxb5 {[%emt 0:00:41]} a6 {[%emt 0:00:08]} 5. bxa6 {[%emt 0:02:34]} Bxa6 {[%emt 0:00:14]} 6. Nc3 {[%emt 0:00:12]} d6 {[%emt 0:01:08]} 7. g3 {[%emt 0:03:14]} g6 {[%emt 0:02:36]} 8. Nf3 {[%emt 0:01:04]} Bg7 {[%emt 0:00:44]} 9. Bg2 {[%emt 0:01:24]} O-O {[%emt 0:01:15]} 10. O-O {[%emt 0:00:11]} Nbd7 {[%emt 0:00:40]} 11. h3 {[%emt 0:01:52]} Nb6 {[%emt 0:01:55]} 12. Re1 {[%emt 0:00:42]} Qc7 {[%emt 0:10:16]} 13. Rb1 {[%emt 0:09:03]} Rfb8 {[%emt 0:11:00]} 14. b3 {[%emt 0:03:27]} Ra7 {[%emt 0:08:33]} 15. e4 {[%emt 0:02:53]} Nfd7 {[%emt 0:01:38]} 16. Qc2 {[%emt 0:02:20]} Ne5 {[%emt 0:14:01]} 17. Nxe5 {[%emt 0:03:24]} Bxe5 {[%emt 0:00:12]} 18. Be3 {[%emt 0:01:30]} Rab7 {[%emt 0:02:56]} 19. Rec1 {[%emt 0:03:14]} Nd7 {[%emt 0:08:47]} 20. a4 {[%emt 0:14:21]} Bd4 {[%emt 0:03:07]} 21. Nb5 {[%emt 0:07:36]} Bxb5 {[%emt 0:00:13]} 22. Bxd4 {[%emt 0:00:07]} Bxa4 {[%emt 0:01:09]} 23. bxa4 {[%emt 0:06:52]} Rxb1 {[%emt 0:00:13]} 24. Rxb1 {[%emt 0:00:11]} Rxb1+ {[%emt 0:00:06]} 25. Qxb1 {[%emt 0:00:03]} cxd4 {[%emt 0:00:13]} 26. Qb5 {[%emt 0:00:24]} Ne5 {[%emt 0:11:48]} 27. f4 {[%emt 0:01:37]} Qc1+ {[%emt 0:01:34]} 28. Kh2 {[%emt 0:04:24]} Nc4 {[%emt 0:00:25]} 29. e5 {[%emt 0:02:23]} dxe5 {[%emt 0:03:48]} 30. fxe5 {[%emt 0:00:09]} d3 {[%emt 0:01:24]} 31. e6 {[%emt 0:05:03]} Kg7 {[%emt 0:02:07]} 32. d6 {[%emt 0:07:27]} d2 {[%emt 0:01:15]} 33. dxe7 {[%emt 0:00:26]} d1=Q {[%emt 0:00:18]} 34. Qc5 {[%emt 0:00:12]} Nd6 {[%emt 0:04:40]} 35. exf7 {[%emt 0:07:37]} Kxf7 {[%emt 0:00:59]} 36. e8=Q+ {[%emt 0:01:04]} Kxe8 {[%emt 0:02:55]} 37. Qe5+ {[%emt 0:01:59]} Kf8 {[%emt 0:01:47]} 38. Qh8+ {[%emt 0:00:32]} Ke7 {[%emt 0:00:50]} 39. Qe5+ {[%emt 0:00:12]} Kd8 {[%emt 0:00:31]} 40. Qf6+ {[%emt 0:01:01]} Kc7 {[%emt 0:00:37]} 41. h4 {[%emt 0:34:13]} Qg1+ {[%emt 0:32:03]} 42. Kh3 {[%emt 0:00:15]} Qh1+ {[%emt 0:00:00]} 43. Bxh1 {[%emt 0:00:00]} Qxh1+ {[%emt 0:00:00]} 44. Kg4 {[%emt 0:00:00]} h5+ {[%emt 0:00:00]} 45. Kf4 {[%emt 0:00:00]} Qf1+ {[%emt 0:00:00]} 46. Ke5 {[%emt 0:00:00]} Qe2+ {[%emt 0:00:00]} 47. Kd4 0-1

[Event "Krakow Championship-B 2022"]
[Site "Krakow"]
[Date "2022.06.25"]
[Round "1.8"]
[White "Marciniak, Leonard"]
[Black "Malik, Maciej"]
[Result "0-1"]
[ECO "E62"]
[WhiteElo "1799"]
[BlackElo "1984"]
[Annotator "NA RC"]
[PlyCount "142"]
[EventDate "2022.06.25"]
[EventType "swiss"]
[EventCountry "POL"]
[SourceTitle "playchess.com"]
[Source "ChessBase"]
[SourceQuality "1"]
[TimeControl "40/5400+30:1800+30"]

1. d4 {[%emt 0:00:05]} Nf6 {[%emt 0:00:20]} 2. c4 {[%emt 0:00:08]} g6 {[%emt 0:00:18]} 3. Nc3 {[%emt 0:00:12]} d6 {[%emt 0:00:59]} 4. g3 {[%emt 0:03:42]} Bg7 {[%emt 0:00:49]} 5. Bg2 {[%emt 0:00:48]} O-O {[%emt 0:00:17]} 6. Nf3 {[%emt 0:00:22]} Nc6 {[%emt 0:06:18]} 7. O-O {[%emt 0:00:15]} Bg4 {[%emt 0:02:59]} 8. h3 {[%emt 0:07:12]} Bxf3 {[%emt 0:01:31]} 9. exf3 {[%emt 0:03:50]} e5 {[%emt 0:00:30]} 10. d5 {[%emt 0:00:37]} Nd4 {[%emt 0:05:20]} 11. Be3 {[%emt 0:01:05]} Nd7 {[%emt 0:04:10]} 12. Ne2 {[%emt 0:08:13]} Nxe2+ {[%emt 0:02:20]} 13. Qxe2 {[%emt 0:04:19]} f5 {[%emt 0:00:10]} 14. f4 {[%emt 0:07:18]} Re8 {[%emt 0:15:12]} 15. Qd2 {[%emt 0:02:05]} Qf6 {[%emt 0:03:04]} 16. Rab1 {[%emt 0:01:34]} a5 {[%emt 0:03:44]} 17. b3 {[%emt 0:08:59]} e4 {[%emt 0:11:36]} 18. Rfc1 {[%emt 0:07:26]} b6 19. a4 Nc5 {[%emt 0:01:12]} 20. Bxc5 {[%emt 0:02:03]} bxc5 {[%emt 0:00:14]} 21. Re1 {[%emt 0:02:13]} Qf7 {[%emt 0:01:17]} 22. Bf1 {[%emt 0:00:47]} Bd4 {[%emt 0:00:55]} 23. Kg2 {[%emt 0:03:36]} Qf6 {[%emt 0:09:08]} 24. Re2 Qf7 {[%emt 0:01:27]} 25. Qc2 {[%emt 0:11:17]} c6 26. dxc6 {[%emt 0:02:13]} Qc7 {[%emt 0:00:36]} 27. Kh2 {[%emt 0:01:39]} Qxc6 {[%emt 0:01:12]} 28. Qd1 {[%emt 0:08:05]} Qc7 29. Bg2 Rab8 {[%emt 0:02:14]} 30. f3 {[%emt 0:02:06]} e3 {[%emt 0:00:33]} 31. Qd3 {[%emt 0:00:38]} Qf7 {[%emt 0:00:50]} 32. b4 {[%emt 0:04:08]} axb4 {[%emt 0:01:42]} 33. Qb3 {[%emt 0:00:16]} Ra8 {[%emt 0:01:03]} 34. Bf1 {[%emt 0:00:39]} Ra7 {[%emt 0:02:08]} 35. Ra2 {[%emt 0:00:18]} Rea8 {[%emt 0:00:29]} 36. Be2 {[%emt 0:01:38]} Qc7 {[%emt 0:09:31]} 37. Bd1 {[%emt 0:01:22]} Qc6 {[%emt 0:04:14]} 38. Kg2 {[%emt 0:00:44]} Bc3 {[%emt 0:04:47]} 39. Qc2 {[%emt 0:04:50]} d5 {[%emt 0:01:45]} 40. Qd3 {[%emt 0:00:40]} dxc4 {[%emt 0:02:02]} 41. Qxc4+ {[%emt 0:30:13]} Kg7 {[%emt 0:30:05]} 42. Bb3 {[%emt 0:01:03]} Qd6 {[%emt 0:01:30]} 43. Rd1 {[%emt 0:00:23]} Bd4 {[%emt 0:00:23]} 44. Re2 {[%emt 0:00:49]} Qf6 {[%emt 0:00:23]} 45. Rc1 {[%emt 0:01:46]} Re7 {[%emt 0:01:24]} 46. Rcc2 {[%emt 0:00:38]} h6 {[%emt 0:01:28]} 47. Qd5 {[%emt 0:00:49]} Rea7 {[%emt 0:00:44]} 48. Qc4 {[%emt 0:00:33]} g5 {[%emt 0:00:20]} 49. fxg5 {[%emt 0:00:20]} hxg5 {[%emt 0:00:06]} 50. Kf1 {[%emt 0:00:45]} Qe5 {[%emt 0:00:35]} 51. Rg2 {[%emt 0:00:28]} Rh8 {[%emt 0:00:32]} 52. h4 {[%emt 0:00:22]} g4 {[%emt 0:00:32]} 53. f4 {[%emt 0:00:27]} Qe4 {[%emt 0:00:08]} 54. Ke1 {[%emt 0:00:51]} Bc3+ {[%emt 0:01:33]} 55. Kd1 {[%emt 0:00:22]} Qxc4 {[%emt 0:00:17]} 56. Bxc4 {[%emt 0:00:01]} Rxa4 {[%emt 0:00:06]} 57. Ke2 {[%emt 0:01:08]} Bd4 {[%emt 0:00:20]} 58. Rg1 {[%emt 0:00:27]} Rha8 {[%emt 0:00:42]} 59. Bd5 {[%emt 0:00:26]} R8a5 {[%emt 0:00:28]} 60. Be6 {[%emt 0:00:16]} Kf6 {[%emt 0:00:21]} 61. Bc4 {[%emt 0:00:50]} Ra1 {[%emt 0:00:25]} 62. Rcc1 {[%emt 0:00:34]} R1a3 {[%emt 0:00:10]} 63. Rb1 {[%emt 0:00:32]} Ra8 {[%emt 0:00:57]} 64. Rh1 {[%emt 0:00:14]} Rc3 {[%emt 0:01:07]} 65. Rhc1 {[%emt 0:00:28]} Raa3 {[%emt 0:00:37]} 66. Bd5 {[%emt 0:00:27]} Rxc1 {[%emt 0:00:21]} 67. Rxc1 {[%emt 0:00:06]} b3 {[%emt 0:00:02]} 68. Rb1 {[%emt 0:00:19]} Ra2+ {[%emt 0:00:26]} 69. Kd3 {[%emt 0:00:41]} Rd2+ {[%emt 0:00:12]} 70. Kc4 {[%emt 0:00:05]} e2 {[%emt 0:00:53]} 71. Kxb3 {[%emt 0:00:44]} Rd1 {[%emt 0:00:08]} 0-1